Workbook

Sheet Inputs
A1: Finding the Efficient Frontier
A4: Today's date | B4: =TODAY() -> 2021-02-08
A5: Start date | B5: =DATE(YEAR(endDate)-5, MONTH(endDate), 15) -> 2016-02-15
A6: End date | B6: =DATE(YEAR(B4), MONTH(B4), 15) -> 2021-02-15
E11: Risk-free Rate | G11: 0.03
E12: Market Risk Premium (Rm-Rf) | G12: 0.057
B14: Ticker Symbols
B15: 1 | C15: IYE
B16: 2 | C16: FXI
B17: 3 | C17: VBR
B18: 4 | C18: RJA
B19: 5 | C19: HYG
B20: 6 | C20: IDU
B21: 7 | C21: VGT
B22: 8 | C22: IFGL
H25: Enter Value for x
A30: Ignore everything below this point on this worksheet
A36: If selected to be restricted, weights for these individual ETFs must be 0.2 or less
A37: Financial (XLF)
A38: Health (XLV)
A39: Energy (IYE)
A40: Technology (VGT)
A41: Utilities (IDU)
A42: China (FXI)
A43: Japan (NKY)
A44: India (INP)
A45: Latin America (EWZ)
A46: Europe (EWG)
A47: Emerging Markets (VWO)
A48: Junk Bonds (HYG)
A49: Domestic Real Estate (VNQ)
A50: Global Real Estate (IFGL)
A51: Precious Metals (IAU)
A52: Natural Resources (VAW)
A53: Agricultural Commodities (RJA)
... 21 more rows

Sheet Returns
B1: PRICES | K1: RETURNS | T1: Rf | U1: =Inputs!$G$11 -> 0.03
A2: Date | B2: IYE | C2: FXI | D2: VBR | E2: RJA | F2: HYG | G2: IDU | H2: VGT | I2: IFGL | J2: S&P500 | K2: =B2 -> IYE | L2: =C2 -> FXI | M2: =D2 -> VBR | N2: RJA | O2: HYG | P2: IDU | Q2: VGT | R2: IFGL | S2: =J2 -> S&P500 | T2: Rm-Rf | U2: =Inputs!$G$12 -> 0.057
A3: 2016-02-01 | B3: 26.20269 | C3: 26.656475 | D3: 84.861374 | E3: 5.98 | F3: 61.531971 | G3: 49.736938 | H3: 95.078331 | I3: 20.705778 | J3: 1932.22998 | K3: _1 | L3: _2 | M3: _3 | N3: _4 | O3: _5 | P3: _6 | Q3: _7 | R3: _8
A4: 2016-03-01 | B4: 28.577271 | C4: 29.728842 | D4: 92.102669 | E4: 6.23 | F4: 63.080173 | G4: 53.416679 | H4: 103.169495 | I4: 22.424862 | J4: 2059.73999 | K4: =LN(B4/B3) -> 0.08674960434 | L4: =LN(C4/C3) -> 0.1090856002 | M4: =LN(D4/D3) -> 0.08188489119 | N4: =LN(E4/E3) -> 0.04095576484 | O4: =LN(F4/F3) -> 0.02484961125 | P4: =LN(G4/G3) -> 0.07137516165 | Q4: =LN(H4/H3) -> 0.08167212957 | R4: =LN(I4/I3) -> 0.07975746232 | S4: =LN(J4/J3) -> 0.06390499042
A5: 2016-04-01 | B5: 31.378494 | C5: 29.517557 | D5: 94.386307 | E5: 6.55 | F5: 65.088669 | G5: 52.681065 | H5: 98.718948 | I5: 23.115046 | J5: 2065.300049 | K5: =LN(B5/B4) -> 0.09351107221 | L5: -0.007132446841 | M5: 0.02449208745 | N5: 0.05008871685 | O5: 0.03134397413 | P5: -0.01386694495 | Q5: -0.04409631457 | R5: 0.03031349341 | S5: 0.002695761648
A6: 2016-05-01 | B6: 30.981508 | C6: 29.623198 | D6: 95.71109 | E6: 6.56 | F6: 65.204865 | G6: 53.507744 | H6: 103.994797 | I6: 22.705454 | J6: 2096.949951 | K6: -0.01273224343 | L6: 0.003572531746 | M6: 0.01393816505 | N6: 0.001525553309 | O6: 0.001783603948 | P6: 0.01557029802 | Q6: 0.05206396535 | R6: -0.01787858754 | S6: 0.01520836665
A7: 2016-06-01 | B7: 31.725855 | C7: 30.12499 | D7: 95.556839 | E7: 6.57 | F7: 66.357246 | G7: 57.114666 | H7: 101.252861 | I7: 22.535435 | J7: 2098.860107 | K7: 0.02374145322 | L7: 0.01679728926 | M7: -0.001612931496 | N7: 0.001523229541 | O7: 0.01751888084 | P7: 0.06523454023 | Q7: -0.02671990667 | R7: -0.007516200683 | S7: 0.0009105064841
A8: 2016-07-01 | B8: 31.228643 | C8: 31.41979 | D8: 100.299736 | E8: 6.37 | F8: 67.236748 | G8: 56.970692 | H8: 109.274811 | I8: 23.827145 | J8: 2173.600098 | K8: -0.01579624505 | L8: 0.0420828893 | M8: 0.04844181964 | N8: -0.03091436291 | O8: 0.01316697974 | P8: -0.002523971156 | Q8: 0.07624494879 | R8: 0.0557365177 | S8: 0.03499043305
A9: 2016-08-01 | B9: 31.603086 | C9: 32.85643 | D9: 101.027878 | E9: 6.04 | F9: 68.573677 | G9: 53.80687 | H9: 111.826416 | I9: 23.546093 | J9: 2170.949951 | K9: 0.01191905551 | L9: 0.04470951482 | M9: 0.007233435696 | N9: -0.05319545764 | O9: 0.01968880059 | P9: -0.05713580598 | Q9: 0.02308190071 | R9: -0.0118655726 | S9: -0.001219987018
A10: 2016-09-01 | B10: 32.451839 | C10: 33.707767 | D10: 100.71843 | E10: 6.2 | F10: 69.327492 | G10: 53.710472 | H10: 114.178879 | I10: 23.553902 | J10: 2168.27002 | K10: 0.02650233929 | L10: 0.0255808216 | M10: -0.00306769671 | N10: 0.0261452801 | O10: 0.01093279359 | P10: -0.001793162369 | Q10: 0.02081852078 | R10: 0.0003315923949 | S10: -0.001235213406
A11: 2016-10-01 | B11: 31.482641 | C11: 32.687939 | D11: 98.367973 | E11: 6.4 | F11: 68.636009 | G11: 54.538128 | H11: 113.948883 | I11: 22.348137 | J11: 2126.149902 | K11: -0.03032079878 | L11: -0.03072211364 | M11: -0.02361352841 | N11: 0.03174869831 | O11: -0.01002422793 | P11: 0.01529206158 | Q11: -0.002016379558 | R11: -0.05254853488 | S11: -0.01961683742
A12: 2016-11-01 | B12: 34.369804 | C12: 33.335312 | D12: 108.412628 | E12: 6.32 | F12: 68.644432 | G12: 51.837029 | H12: 114.548508 | I12: 21.601103 | J12: 2198.810059 | K12: 0.08774207363 | L12: 0.01961108361 | M12: 0.09722930325 | N12: -0.01257878221 | O12: 0.0001227123099 | P12: -0.05079531395 | Q12: 0.005248430836 | R12: -0.03399858368 | S12: 0.03360354539
A13: 2016-12-01 | B13: 34.76313 | C13: 30.781286 | D13: 110.79332 | E13: 6.31 | F13: 69.678421 | G13: 53.770168 | H13: 115.643082 | I13: 20.665348 | J13: 2238.830078 | K13: 0.01137895418 | L13: -0.07971034764 | M13: 0.021721907 | N13: -0.001583531606 | O13: 0.01495064969 | P13: 0.03661407579 | Q13: 0.009510184536 | R13: -0.04428609031 | S13: 0.01803711106
A14: 2017-01-01 | B14: 33.751862 | C14: 33.188465 | D14: 112.240807 | E14: 6.52 | F14: 70.862778 | G14: 54.96814 | H14: 121.05381 | I14: 22.128695 | J14: 2278.870117 | K14: -0.02952175621 | L14: 0.07529546788 | M14: 0.01298014203 | N14: 0.03273869939 | O14: 0.01685463118 | P14: 0.02203492943 | Q14: 0.04572658902 | R14: 0.06841689471 | S14: 0.01772631459
A15: 2017-02-01 | B15: 32.944649 | C15: 34.554367 | D15: 114.498718 | E15: 6.51 | F15: 71.63356 | G15: 57.677113 | H15: 127.032967 | I15: 22.723198 | J15: 2363.639893 | K15: -0.02420673598 | L15: 0.04033156296 | M15: 0.01991700071 | N15: -0.001534919718 | O15: 0.0108183765 | P15: 0.04810669505 | Q15: 0.04821147796 | R15: 0.02651115839 | S15: 0.036523001
A16: 2017-03-01 | B16: 32.406494 | C16: 34.816692 | D16: 113.226913 | E16: 6.29 | F16: 71.532639 | G16: 57.218189 | H16: 129.544937 | I16: 22.673653 | J16: 2362.719971 | K16: -0.01647001538 | L16: 0.007562988202 | M16: -0.01116974156 | N16: -0.03437838551 | O16: -0.001409844187 | P16: -0.007988602365 | Q16: 0.01958118936 | R16: -0.002182751384 | S16: -0.000389272945
A17: 2017-04-01 | B17: 31.525581 | C17: 34.852867 | D17: 114.128464 | E17: 6.22 | F17: 72.123383 | G17: 58.021679 | H17: 132.931595 | I17: 23.382673 | J17: 2384.199951 | K17: -0.02755952331 | L17: 0.001038473726 | M17: 0.007930806276 | N17: -0.01119116396 | O17: 0.008224470115 | P17: 0.01394487922 | Q17: 0.0258068478 | R17: 0.03079168839 | S17: 0.00905013228
A18: 2017-05-01 | B18: 30.316315 | C18: 36.309219 | D18: 111.389763 | E18: 6.18 | F18: 72.866814 | G18: 60.396229 | H18: 138.792847 | I18: 24.064528 | J18: 2411.800049 | K18: -0.03911329505 | L18: 0.04093627529 | M18: -0.02428926194 | N18: -0.006451635281 | O18: 0.01025500386 | P18: 0.04010995265 | Q18: 0.04314783956 | R18: 0.02874361102 | S18: 0.01150975925
A19: 2017-06-01 | B19: 30.02034 | C19: 35.920258 | D19: 113.721367 | E19: 6.39 | F19: 72.9636 | G19: 58.367306 | H19: 134.88533 | I19: 23.68203 | J19: 2423.409912 | K19: -0.009810864525 | L19: -0.01077024993 | M19: 0.02071587827 | N19: 0.03341599692 | O19: 0.001327377624 | P19: -0.03417076491 | Q19: -0.02855750208 | R19: -0.01602235632 | S19: 0.004802225924
A20: 2017-07-01 | B20: 30.895601 | C20: 38.649635 | D20: 115.273567 | E20: 6.37 | F20: 73.706284 | G20: 60.297504 | H20: 140.861664 | I20: 24.614025 | J20: 2470.300049 | K20: 0.02873865939 | L20: 0.07323590523 | M20: 0.01355683941 | N20: -0.003134798805 | O20: 0.01012737349 | P20: 0.03253480554 | Q20: 0.04335329232 | R20: 0.03859986974 | S20: 0.01916401766
A21: 2017-08-01 | B21: 29.253851 | C21: 40.194172 | D21: 113.593109 | E21: 6.07 | F21: 73.763908 | G21: 62.14661 | H21: 145.241379 | I21: 24.849245 | J21: 2471.649902 | K21: -0.05460258818 | L21: 0.03918467873 | M21: -0.01468530264 | N21: -0.04824086451 | O21: 0.0007815003446 | P21: 0.03020556117 | Q21: 0.03061873874 | R21: 0.009510967356 | S21: 0.000546283571
A22: 2017-09-01 | B22: 31.839836 | C22: 40.012463 | D22: 118.643768 | E22: 6.07 | F22: 74.204262 | G22: 60.089523 | H22: 145.980927 | I22: 24.504812 | J22: 2519.360107 | K22: 0.08470698708 | L22: -0.004531029406 | M22: 0.04350261304 | N22: 0 | O22: 0.005952027386 | P22: -0.03366077079 | Q22: 0.005078935058 | R22: -0.01395786336 | S22: 0.01911903932
A23: 2017-10-01 | B23: 31.923983 | C23: 41.729614 | D23: 120.250626 | E23: 6.07 | F23: 74.271996 | G23: 62.927227 | H23: 157.217361 | I23: 24.697701 | J23: 2575.26001 | K23: 0.00263933529 | L23: 0.04202006404 | M23: 0.01345265752 | N23: 0 | O23: 0.0009123883591 | P23: 0.04614343151 | Q23: 0.07415333664 | R23: 0.007840655951 | S23: 0.02194556029
A24: 2017-11-01 | B24: 32.595165 | C24: 41.947666 | D24: 124.057152 | E24: 6.05 | F24: 73.997009 | G24: 64.661919 | H24: 158.931839 | I24: 25.356983 | J24: 2647.580078 | K24: 0.02080641899 | L24: 0.005211749081 | M24: 0.03116424785 | N24: -0.003300333029 | O24: -0.003709302768 | P24: 0.02719351844 | Q24: 0.01084611195 | R24: 0.02634399324 | S24: 0.02769554091
A25: 2017-12-01 | B25: 34.118225 | C25: 41.947666 | D25: 123.879875 | E25: 6 | F25: 73.86425 | G25: 60.495888 | H25: 158.662125 | I25: 25.356983 | J25: 2673.610107 | K25: 0.04566773451 | L25: 0 | M25: -0.001430016584 | N25: -0.008298802815 | O25: -0.001795724405 | P25: -0.06659705439 | Q25: -0.00169848357 | R25: 0 | S25: 0.009783614464
A26: 2018-01-01 | B26: 35.371674 | C26: 48.804577 | D26: 127.089668 | E26: 6.15 | F26: 74.521156 | G26: 58.831211 | H26: 171.096619 | I26: 27.237976 | J26: 2823.810059 | K26: 0.03607963135 | L26: 0.1514013057 | M26: 0.02558053851 | N26: 0.02469261259 | O26: 0.008854109164 | P26: -0.02790288238 | Q26: 0.07545147912 | R26: 0.07155802041 | S26: 0.05465739866
A27: 2018-02-01 | B27: 31.600082 | C27: 43.754543 | D27: 121.070435 | E27: 6.35 | F27: 73.565102 | G27: 56.45784 | H27: 171.260773 | I27: 25.415171 | J27: 2713.830078 | K27: -0.1127516148 | L27: -0.109228652 | M27: -0.04852040089 | N27: 0.03200273109 | O27: -0.01291230255 | P27: -0.04117834848 | Q27: 0.000958962864 | R27: -0.06926589684 | S27: -0.03972610779
A28: 2018-03-01 | B28: 31.980703 | C28: 43.773087 | D28: 121.530586 | E28: 6.18 | F28: 73.411942 | G28: 58.282452 | H28: 165.138107 | I28: 25.805769 | J28: 2640.870117 | K28: 0.01197297413 | L28: 0.000423729062 | M28: 0.00379348405 | N28: -0.02713654144 | O28: -0.002084135744 | P28: 0.03180688827 | Q28: -0.03640524727 | R28: 0.0152517924 | S28: -0.02725249739
A29: 2018-04-01 | B29: 35.294197 | C29: 43.485836 | D29: 122.540909 | E29: 6.3 | F29: 73.755173 | G29: 60.111996 | H29: 165.441605 | I29: 26.428118 | J29: 2648.050049 | K29: 0.09858586984 | L29: -0.006583900598 | M29: 0.00827895753 | N29: 0.01923136193 | O29: 0.004664515199 | P29: 0.03090836909 | Q29: 0.001836156753 | R29: 0.02383044754 | S29: 0.002715085948
A30: 2018-05-01 | B30: 36.496815 | C30: 43.272717 | D30: 128.07663 | E30: 6.39 | F30: 73.780464 | G30: 59.77092 | H30: 177.102631 | I30: 26.209633 | J30: 2705.27002 | K30: 0.03350643702 | L30: -0.004912931839 | M30: 0.04418383141 | N30: 0.01418463499 | O30: 0.000342845983 | P30: -0.005690167234 | Q30: 0.06811110802 | R30: -0.008301504171 | S30: 0.02137819129
A31: 2018-06-01 | B31: 36.549103 | C31: 39.81646 | D31: 128.057816 | E31: 5.95 | F31: 73.833931 | G31: 60.812592 | H31: 175.544617 | I31: 25.501738 | J31: 2718.370117 | K31: 0.001431647664 | L31: -0.0832419494 | M31: -0.0001469072226 | N31: -0.07134304883 | O31: 0.0007244144765 | P31: 0.01727761774 | Q31: -0.008836162176 | R31: -0.02738040824 | S31: 0.004830749144
A32: 2018-07-01 | B32: 37.172096 | C32: 40.954475 | D32: 131.732452 | E32: 6.08 | F32: 75.074112 | G32: 62.301186 | H32: 180.641434 | I32: 26.189617 | J32: 2816.290039 | K32: 0.01690172811 | L32: 0.0281806893 | M32: 0.02829113746 | N32: 0.02161347642 | O32: 0.01665739004 | P32: 0.02418358974 | Q32: 0.0286208003 | R32: 0.02661642781 | S32: 0.03538795078
A33: 2018-08-01 | B33: 36.006359 | C33: 39.799644 | D33: 134.912888 | E33: 5.84 | F33: 75.622002 | G33: 63.0117 | H33: 196.788147 | I33: 25.844084 | J33: 2901.52002 | K33: -0.03186281053 | L33: -0.02860311641 | M33: 0.02385630919 | N33: -0.04027389914 | O33: 0.007271486962 | P33: 0.0113399609 | Q33: 0.08561371533 | R33: -0.01328131855 | S33: 0.02981431471
A34: 2018-09-01 | B34: 36.777664 | C34: 40.203365 | D34: 131.912277 | E34: 5.68 | F34: 76.015984 | G34: 62.259407 | H34: 196.555252 | I34: 25.383373 | J34: 2913.97998 | K34: 0.02119514263 | L34: 0.01009273106 | M34: -0.0224921626 | N34: -0.02777956411 | O34: 0.005196361373 | P34: -0.01201078304 | Q34: -0.001184181699 | R34: -0.01798736258 | S34: 0.004285092964
A35: 2018-10-01 | B35: 32.646656 | C35: 36.889076 | D35: 120.65274 | E35: 5.72 | F35: 74.498047 | G35: 63.516968 | H35: 180.475677 | I35: 24.215021 | J35: 2711.73999 | K35: -0.1191482735 | L35: -0.08603523473 | M35: -0.08922063135 | N35: 0.007017572659 | O35: -0.02017072369 | P35: 0.01999744241 | Q35: -0.08534755722 | R35: -0.04712121029 | S35: -0.07192934588
A36: 2018-11-01 | B36: 31.853401 | C36: 39.452255 | D36: 123.489388 | E36: 5.73 | F36: 74.169434 | G36: 65.832901 | H36: 177.827774 | I36: 24.981771 | J36: 2760.169922 | K36: -0.02459827277 | L36: 0.06717574276 | M36: 0.02323872312 | N36: 0.001746725335 | O36: -0.004420785675 | P36: 0.03581264576 | Q36: -0.01478049513 | R36: 0.03117325582 | S36: 0.01770175219
A37: 2018-12-01 | B37: 27.464083 | C37: 36.691914 | D37: 108.573189 | E37: 5.6 | F37: 72.307198 | G37: 62.796471 | H37: 162.407669 | I37: 24.099119 | J37: 2506.850098 | K37: -0.1482650798 | L37: -0.07253480281 | M37: -0.1287307267 | N37: -0.02294893299 | O37: -0.02542844299 | P37: -0.04722085094 | Q37: -0.09070587059 | R37: -0.03597111509 | S37: -0.09626521977
A38: 2019-01-01 | B38: 30.832064 | C38: 40.954258 | D38: 121.581535 | E38: 5.75 | F38: 76.58773 | G38: 65.405327 | H38: 176.019501 | I38: 26.739548 | J38: 2704.100098 | K38: 0.1156761091 | L38: 0.1098993815 | M38: 0.1131606091 | N38: 0.02643325707 | O38: 0.05751319954 | P38: 0.04070483012 | Q38: 0.08048514052 | R38: 0.1039683842 | S38: 0.07574215198
A39: 2019-02-01 | B39: 31.479942 | C39: 41.419434 | D39: 126.433662 | E39: 5.55 | F39: 77.163628 | G39: 67.950577 | H39: 188.916138 | I39: 26.478012 | J39: 2784.48999 | K39: 0.02079539367 | L39: 0.01129440562 | M39: 0.03913265188 | N39: -0.03540192705 | O39: 0.007491324965 | P39: 0.03817692435 | Q39: 0.07070841227 | R39: -0.009829015294 | S39: 0.02929555315
A40: 2019-03-01 | B40: 31.976946 | C40: 42.027004 | D40: 123.441833 | E40: 5.51 | F40: 78.168816 | G40: 69.30555 | H40: 196.019058 | I40: 27.415926 | J40: 2834.399902 | K40: 0.01566462455 | L40: 0.01456217308 | M40: -0.02394770228 | N40: -0.007233304594 | O40: 0.01294258953 | P40: 0.01974435747 | Q40: 0.03690868689 | R40: 0.03480943269 | S40: 0.01776551085
A41: 2019-04-01 | B41: 32.135899 | C41: 42.235863 | D41: 128.8591 | E41: 5.34 | F41: 78.945389 | G41: 70.454193 | H41: 209.131088 | I41: 26.926601 | J41: 2945.830078 | K41: 0.004958548499 | L41: 0.004957330202 | M41: 0.0429495021 | N41: -0.03133897019 | O41: 0.009885539301 | P41: 0.01643776439 | Q41: 0.06474938146 | R41: -0.01800940267 | S41: 0.0385603975
A42: 2019-05-01 | B42: 28.469866 | C42: 38.324604 | D42: 118.377747 | E42: 5.53 | F42: 77.43235 | G42: 69.762115 | H42: 190.56105 | I42: 26.808502 | J42: 2752.060059 | K42: -0.1211275596 | L42: -0.09717760224 | M42: -0.08483880221 | N42: 0.03496216256 | O42: -0.01935168301 | P42: -0.009871656587 | Q42: -0.09298865499 | R42: -0.004395606729 | S42: -0.06804089389
A43: 2019-06-01 | B43: 30.767843 | C43: 40.603008 | D43: 125.757088 | E43: 5.56 | F43: 79.847954 | G43: 71.478065 | H43: 206.661621 | I43: 27.081038 | J43: 2941.76001 | K43: 0.07762389156 | L43: 0.05775006051 | M43: 0.06047141605 | N43: 0.005410292728 | O43: 0.03071959936 | P43: 0.02429952204 | Q43: 0.08111015889 | R43: 0.01011470217 | S43: 0.0666583015
A44: 2019-07-01 | B44: 30.377752 | C44: 39.413799 | D44: 127.439926 | E44: 5.31 | F44: 79.982635 | G44: 71.845741 | H44: 214.614395 | I44: 26.922194 | J44: 2980.379883 | K44: -0.01275958775 | L44: -0.02972616912 | M44: 0.01329291174 | N44: -0.04600627301 | O44: 0.001685297323 | P44: 0.005130715083 | Q44: 0.03776013168 | R44: -0.005882775982 | S44: 0.01304272482
A45: 2019-08-01 | B45: 27.736605 | C45: 37.51503 | D45: 120.511749 | E45: 5.03 | F45: 80.550896 | G45: 75.274696 | H45: 209.906357 | I45: 27.271471 | J45: 2926.459961 | K45: -0.09095747743 | L45: -0.04937433074 | M45: -0.05589783468 | N45: -0.05417185114 | O45: 0.007079684474 | P45: 0.04662270134 | Q45: -0.02218139401 | R45: 0.01289013527 | S45: -0.01825728178
A46: 2019-09-01 | B46: 28.629004 | C46: 38.167133 | D46: 124.852768 | E46: 5.25 | F46: 80.901695 | G46: 77.772408 | H46: 211.862305 | I46: 27.271471 | J46: 2976.73999 | K46: 0.03166730887 | L46: 0.01723309991 | M46: 0.03538793683 | N46: 0.04280809249 | O46: 0.00434554255 | P46: 0.03264267949 | Q46: 0.009275046717 | R46: 0 | S46: 0.01703525049
A47: 2019-10-01 | B47: 28.206377 | C47: 39.46175 | D47: 127.495872 | E47: 5.35 | F47: 80.911972 | G47: 77.622704 | H47: 220.662018 | I47: 28.661255 | J47: 3037.560059 | K47: -0.01487224269 | L47: 0.03335709573 | M47: 0.02094880052 | N47: 0.0188684843 | O47: 0.0001270226453 | P47: -0.001926753607 | Q47: 0.04069564165 | R47: 0.04970507323 | S47: 0.02022584237
A48: 2019-11-01 | B48: 28.606339 | C48: 39.260365 | D48: 130.656525 | E48: 5.35 | F48: 81.359818 | G48: 76.050049 | H48: 233.005432 | I48: 28.576902 | J48: 3140.97998 | K48: 0.01408024949 | L48: -0.005116362519 | M48: 0.02448794571 | N48: 0 | O48: 0.005519716484 | P48: -0.0204682987 | Q48: 0.05442956602 | R48: -0.002947441549 | S48: 0.03348026579
A49: 2019-12-01 | B49: 29.197189 | C49: 41.84 | D49: 133.301758 | E49: 5.56 | F49: 82.639297 | G49: 77.93531 | H49: 241.589584 | I49: 28.305098 | J49: 3230.780029 | K49: 0.02044410089 | L49: 0.06363733396 | M49: 0.02004348208 | N49: 0.03850154735 | O49: 0.01560380323 | P49: 0.02448746059 | Q49: 0.03617858595 | R49: -0.009556839377 | S49: 0.02818875636
A50: 2020-01-01 | B50: 27.000679 | C50: 38.82782 | D50: 129.763977 | E50: 5.39 | F50: 82.872894 | G50: 83.355621 | H50: 251.480408 | I50: 29.371689 | J50: 3225.52002 | K50: -0.07821042368 | L50: -0.07471581975 | M50: -0.02689817661 | N50: -0.03105272334 | O50: 0.00282271842 | P50: 0.06723692183 | Q50: 0.04012473336 | R50: 0.03698932145 | S50: -0.001629419365
A51: 2020-02-01 | B51: 23.021629 | C51: 39.726704 | D51: 116.55735 | E51: 5.15 | F51: 81.462166 | G51: 74.667191 | H51: 233.147202 | I51: 27.063639 | J51: 2954.219971 | K51: -0.1594278485 | L51: 0.0228866064 | M51: -0.1073338122 | N51: -0.04554867025 | O51: -0.01716934481 | P51: -0.11007526 | Q51: -0.07569506358 | R51: -0.08184015858 | S51: -0.08785953695
A52: 2020-03-01 | B52: 14.504574 | C52: 36.678318 | D52: 86.999184 | E52: 4.8 | F52: 73.275833 | G52: 66.84034 | H52: 209.64946 | I52: 21.054905 | J52: 2584.590088 | K52: -0.4619701174 | L52: -0.07983781612 | M52: -0.2924846873 | N52: -0.07038079676 | O52: -0.1059078369 | P52: -0.110733995 | Q52: -0.1062331244 | R52: -0.251057543 | S52: -0.1336677247
A53: 2020-04-01 | B53: 19.328453 | C53: 37.704216 | D53: 98.778717 | E53: 4.75 | F53: 76.809639 | G53: 69.560883 | H53: 240.358521 | I53: 22.339321 | J53: 2912.429932 | K53: 0.287114211 | L53: 0.02758612816 | M53: 0.1269834273 | N53: -0.01047129987 | O53: 0.04709928542 | P53: 0.03989559299 | Q53: 0.1366947483 | R53: 0.05921484966 | S53: 0.1194208388
A54: 2020-05-01 | B54: 19.675669 | C54: 38.153656 | D54: 103.51899 | E54: 4.91 | F54: 79.105225 | G54: 72.354446 | H54: 259.25943 | I54: 22.55592 | J54: 3044.310059 | K54: 0.01780453729 | L54: 0.01184966694 | M54: 0.04687290757 | N54: 0.03312932376 | O54: 0.02944878813 | P54: 0.03937451899 | Q54: 0.07569757443 | R54: 0.009649159944 | S54: 0.04428653296
A55: 2020-06-01 | B55: 19.299515 | C55: 38.788738 | D55: 105.151527 | E55: 4.93 | F55: 78.698479 | G55: 68.471779 | H55: 276.819519 | I55: 22.811901 | J55: 3100.290039 | K55: -0.01930283021 | L55: 0.01650836138 | M55: 0.01564735002 | N55: 0.004065046248 | O55: -0.005155099538 | P55: -0.05515522749 | Q55: 0.06553651727 | R55: 0.01128481425 | S55: 0.0182213742
A56: 2020-07-01 | B56: 18.664938 | C56: 40.756844 | D56: 109.13089 | E56: 5.12 | F56: 82.655426 | G56: 73.958427 | H56: 293.995209 | I56: 23.477818 | J56: 3271.120117 | K56: -0.03343317543 | L56: 0.04949382974 | M56: 0.03714556335 | N56: 0.037815451 | O56: 0.04905664376 | P56: 0.07708146306 | Q56: 0.06019773341 | R56: 0.02877368702 | S56: 0.0536368016
A57: 2020-08-01 | B57: 18.518738 | C57: 43.308456 | D57: 114.180321 | E57: 5.43 | F57: 82.654327 | G57: 72.005295 | H57: 326.733246 | I57: 24.558512 | J57: 3500.310059 | K57: -0.007863706288 | L57: 0.06072412812 | M57: 0.04523097438 | N57: 0.05878469489 | O57: -1.329625119e-05 | P57: -0.02676348006 | Q57: 0.1055806052 | R57: 0.04500245464 | S57: 0.06771908318
A58: 2020-09-01 | B58: 15.55574 | C58: 41.37751 | D58: 109.318626 | E58: 5.53 | F58: 81.882881 | G58: 71.838028 | H58: 310.105377 | I58: 23.735598 | J58: 3363 | K58: -0.174353382 | L58: -0.04561040812 | M58: -0.04351216951 | N58: 0.01824868159 | O58: -0.009377230382 | P58: -0.00232568425 | Q58: -0.05223191099 | R58: -0.03408256858 | S58: -0.0400181201
A59: 2020-10-01 | B59: 15.221303 | C59: 43.446381 | D59: 113.400009 | E59: 5.69 | F59: 82.192993 | G59: 75.827499 | H59: 297.398346 | I59: 22.950001 | J59: 3269.959961 | K59: -0.02173374254 | L59: 0.04879006059 | M59: 0.03665467828 | N59: 0.0285224326 | O59: 0.003780109308 | P59: 0.05404703677 | Q59: -0.04183969305 | R59: -0.03365796647 | S59: -0.02805569227
A60: 2020-11-01 | B60: 19.390574 | C60: 46.303402 | D60: 133.158051 | E60: 6 | F60: 84.945351 | G60: 77.142395 | H60: 334.664215 | I60: 26.200001 | J60: 3621.629883 | K60: 0.2420911119 | L60: 0.06368787861 | M60: 0.1606153054 | N60: 0.05304922109 | O60: 0.03293806519 | P60: 0.01719198924 | Q60: 0.1180552134 | R60: 0.1324414689 | S60: 0.1021464279
A61: 2020-12-01 | B61: 20.044188 | C61: 45.741852 | D61: 141.33757 | E61: 6.58 | F61: 86.279022 | G61: 77.008423 | H61: 353.087585 | I61: 27.17 | J61: 3756.070068 | K61: 0.03315216471 | L61: -0.01220175822 | M61: 0.05961436646 | N61: 0.09227527611 | O61: 0.01557836596 | P61: -0.001738194263 | Q61: 0.05358845645 | R61: 0.0363539745 | S61: 0.03644904769
A62: 2021-01-01 | B62: 21.040001 | C62: 49.360001 | D62: 145.110001 | E62: 6.78 | F62: 86.652 | G62: 76.790001 | H62: 351.299988 | I62: 26.719999 | J62: 3714.23999 | K62: 0.04848619898 | L62: 0.07612672236 | M62: 0.02634093986 | N62: 0.02994235662 | O62: 0.004313610988 | P62: -0.002840369116 | Q62: -0.005075617192 | R62: -0.01670111219 | S62: -0.01119913762
A63: 2021-02-01 | B63: 22.719999 | C63: 51.689999 | D63: 153.800003 | E63: 6.81 | F63: 87.199982 | G63: 78.629997 | H63: 370.700012 | I63: 27.040001 | J63: 3886.830078 | K63: =LN(B63/B62) -> 0.07682011444 | L63: =LN(C63/C62) -> 0.04612392001 | M63: 0.05816099418 | N63: 0.004415018209 | O63: 0.006304027236 | P63: 0.02367883149 | Q63: 0.05375261741 | R63: 0.01190497691 | S63: 0.04541985695
A65: Monthly Standard Deviation | K65: =STDEV(K4:K63) -> 0.09921715998 | L65: =STDEV(L4:L63) -> 0.05305080019 | M65: 0.06401278949 | N65: 0.03380599238 | O65: 0.02144927439 | P65: 0.03986990561 | Q65: 0.05317162866 | R65: 0.05164506813 | S65: 0.04365815766
A66: Annualized Standard Deviation | K66: =K65*SQRT(12) -> 0.3436983241 | L66: =L65*SQRT(12) -> 0.1837733626 | M66: 0.2217468074 | N66: 0.1171073928 | O66: 0.07430246607 | P66: 0.1381134044 | Q66: 0.1841919247 | R66: 0.1789037639 | S66: 0.1512362945
A67: Correlation with S&P | K67: =CORREL(K4:K63,$S$4:$S$63) -> 0.8278086529 | L67: =CORREL(L4:L63,$S$4:$S$63) -> 0.606526038 | M67: 0.9075875527 | N67: 0.3271097042 | O67: 0.7979361048 | P67: 0.4553243433 | Q67: 0.90011596 | R67: 0.7554472041 | S67: 1
A68: Beta | K68: =K67*(K66/$S$66) -> 1.881270946 | L68: =L67*(L66/$S$66) -> 0.7370144179 | M68: 1.33072979 | N68: 0.2532921397 | O68: 0.3920264019 | P68: 0.4158154985 | Q68: 1.096258618 | R68: 0.8936502229 | S68: 1
A69: Expected Return from CAPM | K69: =$U$1+K68*$U$2 -> 0.1372324439 | L69: =$U$1+L68*$U$2 -> 0.07200982182 | M69: 0.105851598 | N69: 0.04443765196 | O69: 0.05234550491 | P69: 0.05370148341 | Q69: 0.09248674123 | R69: 0.08093806271 | S69: =$U$1+S68*$U$2 -> 0.087

Sheet Correlation Matrix
C1: Correlation Matrix
C2: =Returns!K3 -> _1 | D2: =Returns!L3 -> _2 | E2: =Returns!M3 -> _3 | F2: =Returns!N3 -> _4 | G2: =Returns!O3 -> _5 | H2: =Returns!P3 -> _6 | I2: =Returns!Q3 -> _7 | J2: =Returns!R3 -> _8
C3: =Returns!B2 -> IYE | D3: =Returns!C2 -> FXI | E3: =Returns!D2 -> VBR | F3: =Returns!E2 -> RJA | G3: =Returns!F2 -> HYG | H3: =Returns!G2 -> IDU | I3: =Returns!H2 -> VGT | J3: =Returns!I2 -> IFGL | M3: Stand Dev | N3: Expect Ret
A4: =C2 -> _1 | B4: =C3 -> IYE | C4: =CORREL(INDIRECT(C$2),INDIRECT($A4)) -> 1 | D4: 0.4999957892 | E4: 0.9076217804 | F4: 0.350134167 | G4: 0.8070703027 | H4: 0.3796631916 | I4: 0.6348465336 | J4: 0.7266752903 | L4: =B4 -> IYE | M4: =Returns!K66 -> 0.3436983241 | N4: =Returns!K69 -> 0.1372324439
A5: =D2 -> _2 | B5: =D3 -> FXI | C5: 0.4999957892 | D5: 1 | E5: 0.5654124418 | F5: 0.2970008595 | G5: 0.5186788068 | H5: 0.2203244417 | I5: 0.5538601641 | J5: 0.5893410786 | L5: =B5 -> FXI | M5: =Returns!L66 -> 0.1837733626 | N5: =Returns!L69 -> 0.07200982182
A6: =E2 -> _3 | B6: =E3 -> VBR | C6: 0.9076217804 | D6: 0.5654124418 | E6: 1 | F6: 0.4130916508 | G6: 0.8317179585 | H6: 0.4449801511 | I6: 0.7476575189 | J6: 0.7586163623 | L6: VBR | M6: =Returns!M66 -> 0.2217468074 | N6: =Returns!M69 -> 0.105851598
A7: =F2 -> _4 | B7: =F3 -> RJA | C7: 0.350134167 | D7: 0.2970008595 | E7: 0.4130916508 | F7: 1 | G7: 0.3611654832 | H7: 0.1917932981 | I7: 0.1979963873 | J7: 0.4036214107 | L7: RJA | M7: =Returns!N66 -> 0.1171073928 | N7: =Returns!N69 -> 0.04443765196
A8: =G2 -> _5 | B8: =G3 -> HYG | C8: 0.8070703027 | D8: 0.5186788068 | E8: 0.8317179585 | F8: 0.3611654832 | G8: 1 | H8: 0.5675682368 | I8: 0.6429697127 | J8: 0.7877741376 | L8: HYG | M8: =Returns!O66 -> 0.07430246607 | N8: =Returns!O69 -> 0.05234550491
A9: =H2 -> _6 | B9: =H3 -> IDU | C9: 0.3796631916 | D9: 0.2203244417 | E9: 0.4449801511 | F9: 0.1917932981 | G9: 0.5675682368 | H9: 1 | I9: 0.3687138602 | J9: 0.5155389909 | L9: IDU | M9: =Returns!P66 -> 0.1381134044 | N9: =Returns!P69 -> 0.05370148341
A10: =I2 -> _7 | B10: =I3 -> VGT | C10: 0.6348465336 | D10: 0.5538601641 | E10: 0.7476575189 | F10: 0.1979963873 | G10: 0.6429697127 | H10: 0.3687138602 | I10: 1 | J10: 0.644324236 | L10: VGT | M10: =Returns!Q66 -> 0.1841919247 | N10: =Returns!Q69 -> 0.09248674123
A11: =J2 -> _8 | B11: =J3 -> IFGL | C11: 0.7266752903 | D11: 0.5893410786 | E11: 0.7586163623 | F11: 0.4036214107 | G11: 0.7877741376 | H11: 0.5155389909 | I11: 0.644324236 | J11: 1 | L11: IFGL | M11: =Returns!R66 -> 0.1789037639 | N11: =Returns!R69 -> 0.08093806271

Sheet Covar Matrix
D1: Var/Cov Matrix
C2: ='Correlation Matrix'!C3 -> IYE | D2: ='Correlation Matrix'!D3 -> FXI | E2: ='Correlation Matrix'!E3 -> VBR | F2: ='Correlation Matrix'!F3 -> RJA | G2: ='Correlation Matrix'!G3 -> HYG | H2: ='Correlation Matrix'!H3 -> IDU | I2: ='Correlation Matrix'!I3 -> VGT | J2: ='Correlation Matrix'!J3 -> IFGL
B3: =C2 -> IYE | C3: ='Correlation Matrix'!C4*'Correlation Matrix'!$M$4*'Correlation Matrix'!M4 -> 0.118128538 | D3: ='Correlation Matrix'!D4*'Correlation Matrix'!$M$5*'Correlation Matrix'!M4 -> 0.03158103241 | E3: ='Correlation Matrix'!E4*'Correlation Matrix'!$M$6*'Correlation Matrix'!M4 -> 0.06917349191 | F3: ='Correlation Matrix'!F4*'Correlation Matrix'!$M$7*'Correlation Matrix'!M4 -> 0.0140927653 | G3: ='Correlation Matrix'!G4*'Correlation Matrix'!$M$8*'Correlation Matrix'!M4 -> 0.02061066525 | H3: ='Correlation Matrix'!H4*'Correlation Matrix'!$M$9*'Correlation Matrix'!M4 -> 0.01802236327 | I3: ='Correlation Matrix'!I4*'Correlation Matrix'!$M$10*'Correlation Matrix'!M4 -> 0.04018988405 | J3: ='Correlation Matrix'!J4*'Correlation Matrix'!$M$11*'Correlation Matrix'!M4 -> 0.04468248158
B4: =D2 -> FXI | C4: ='Correlation Matrix'!C5*'Correlation Matrix'!$M$4*'Correlation Matrix'!M5 -> 0.03158103241 | D4: ='Correlation Matrix'!D5*'Correlation Matrix'!$M$5*'Correlation Matrix'!M5 -> 0.03377264881 | E4: ='Correlation Matrix'!E5*'Correlation Matrix'!$M$6*'Correlation Matrix'!M5 -> 0.02304121088 | F4: ='Correlation Matrix'!F5*'Correlation Matrix'!$M$7*'Correlation Matrix'!M5 -> 0.006391820649 | G4: ='Correlation Matrix'!G5*'Correlation Matrix'!$M$8*'Correlation Matrix'!M5 -> 0.007082462654 | H4: ='Correlation Matrix'!H5*'Correlation Matrix'!$M$9*'Correlation Matrix'!M5 -> 0.005592179082 | I4: ='Correlation Matrix'!I5*'Correlation Matrix'!$M$10*'Correlation Matrix'!M5 -> 0.01874792805 | J4: ='Correlation Matrix'!J5*'Correlation Matrix'!$M$11*'Correlation Matrix'!M5 -> 0.01937620645
B5: =E2 -> VBR | C5: ='Correlation Matrix'!C6*'Correlation Matrix'!$M$4*'Correlation Matrix'!M6 -> 0.06917349191 | D5: ='Correlation Matrix'!D6*'Correlation Matrix'!$M$5*'Correlation Matrix'!M6 -> 0.02304121088 | E5: ='Correlation Matrix'!E6*'Correlation Matrix'!$M$6*'Correlation Matrix'!M6 -> 0.04917164661 | F5: ='Correlation Matrix'!F6*'Correlation Matrix'!$M$7*'Correlation Matrix'!M6 -> 0.01072724268 | G5: ='Correlation Matrix'!G6*'Correlation Matrix'!$M$8*'Correlation Matrix'!M6 -> 0.01370366341 | H5: ='Correlation Matrix'!H6*'Correlation Matrix'!$M$9*'Correlation Matrix'!M6 -> 0.013628054 | I5: ='Correlation Matrix'!I6*'Correlation Matrix'!$M$10*'Correlation Matrix'!M6 -> 0.03053730222 | J5: ='Correlation Matrix'!J6*'Correlation Matrix'!$M$11*'Correlation Matrix'!M6 -> 0.03009532649
B6: =F2 -> RJA | C6: ='Correlation Matrix'!C7*'Correlation Matrix'!$M$4*'Correlation Matrix'!M7 -> 0.0140927653 | D6: ='Correlation Matrix'!D7*'Correlation Matrix'!$M$5*'Correlation Matrix'!M7 -> 0.006391820649 | E6: ='Correlation Matrix'!E7*'Correlation Matrix'!$M$6*'Correlation Matrix'!M7 -> 0.01072724268 | F6: ='Correlation Matrix'!F7*'Correlation Matrix'!$M$7*'Correlation Matrix'!M7 -> 0.01371414145 | G6: ='Correlation Matrix'!G7*'Correlation Matrix'!$M$8*'Correlation Matrix'!M7 -> 0.003142633808 | H6: ='Correlation Matrix'!H7*'Correlation Matrix'!$M$9*'Correlation Matrix'!M7 -> 0.003102084117 | I6: ='Correlation Matrix'!I7*'Correlation Matrix'!$M$10*'Correlation Matrix'!M7 -> 0.004270828817 | J6: ='Correlation Matrix'!J7*'Correlation Matrix'!$M$11*'Correlation Matrix'!M7 -> 0.00845625335
B7: =G2 -> HYG | C7: ='Correlation Matrix'!C8*'Correlation Matrix'!$M$4*'Correlation Matrix'!M8 -> 0.02061066525 | D7: ='Correlation Matrix'!D8*'Correlation Matrix'!$M$5*'Correlation Matrix'!M8 -> 0.007082462654 | E7: ='Correlation Matrix'!E8*'Correlation Matrix'!$M$6*'Correlation Matrix'!M8 -> 0.01370366341 | F7: ='Correlation Matrix'!F8*'Correlation Matrix'!$M$7*'Correlation Matrix'!M8 -> 0.003142633808 | G7: ='Correlation Matrix'!G8*'Correlation Matrix'!$M$8*'Correlation Matrix'!M8 -> 0.005520856465 | H7: ='Correlation Matrix'!H8*'Correlation Matrix'!$M$9*'Correlation Matrix'!M8 -> 0.005824479772 | I7: ='Correlation Matrix'!I8*'Correlation Matrix'!$M$10*'Correlation Matrix'!M8 -> 0.008799628346 | J7: ='Correlation Matrix'!J8*'Correlation Matrix'!$M$11*'Correlation Matrix'!M8 -> 0.0104718744
B8: =H2 -> IDU | C8: ='Correlation Matrix'!C9*'Correlation Matrix'!$M$4*'Correlation Matrix'!M9 -> 0.01802236327 | D8: ='Correlation Matrix'!D9*'Correlation Matrix'!$M$5*'Correlation Matrix'!M9 -> 0.005592179082 | E8: ='Correlation Matrix'!E9*'Correlation Matrix'!$M$6*'Correlation Matrix'!M9 -> 0.013628054 | F8: ='Correlation Matrix'!F9*'Correlation Matrix'!$M$7*'Correlation Matrix'!M9 -> 0.003102084117 | G8: ='Correlation Matrix'!G9*'Correlation Matrix'!$M$8*'Correlation Matrix'!M9 -> 0.005824479772 | H8: ='Correlation Matrix'!H9*'Correlation Matrix'!$M$9*'Correlation Matrix'!M9 -> 0.01907531248 | I8: ='Correlation Matrix'!I9*'Correlation Matrix'!$M$10*'Correlation Matrix'!M9 -> 0.009379849711 | J8: ='Correlation Matrix'!J9*'Correlation Matrix'!$M$11*'Correlation Matrix'!M9 -> 0.012738457
B9: =I2 -> VGT | C9: ='Correlation Matrix'!C10*'Correlation Matrix'!$M$4*'Correlation Matrix'!M10 -> 0.04018988405 | D9: ='Correlation Matrix'!D10*'Correlation Matrix'!$M$5*'Correlation Matrix'!M10 -> 0.01874792805 | E9: ='Correlation Matrix'!E10*'Correlation Matrix'!$M$6*'Correlation Matrix'!M10 -> 0.03053730222 | F9: ='Correlation Matrix'!F10*'Correlation Matrix'!$M$7*'Correlation Matrix'!M10 -> 0.004270828817 | G9: ='Correlation Matrix'!G10*'Correlation Matrix'!$M$8*'Correlation Matrix'!M10 -> 0.008799628346 | H9: ='Correlation Matrix'!H10*'Correlation Matrix'!$M$9*'Correlation Matrix'!M10 -> 0.009379849711 | I9: ='Correlation Matrix'!I10*'Correlation Matrix'!$M$10*'Correlation Matrix'!M10 -> 0.03392666514 | J9: ='Correlation Matrix'!J10*'Correlation Matrix'!$M$11*'Correlation Matrix'!M10 -> 0.02123217726
B10: =J2 -> IFGL | C10: ='Correlation Matrix'!C11*'Correlation Matrix'!$M$4*'Correlation Matrix'!M11 -> 0.04468248158 | D10: ='Correlation Matrix'!D11*'Correlation Matrix'!$M$5*'Correlation Matrix'!M11 -> 0.01937620645 | E10: ='Correlation Matrix'!E11*'Correlation Matrix'!$M$6*'Correlation Matrix'!M11 -> 0.03009532649 | F10: ='Correlation Matrix'!F11*'Correlation Matrix'!$M$7*'Correlation Matrix'!M11 -> 0.00845625335 | G10: ='Correlation Matrix'!G11*'Correlation Matrix'!$M$8*'Correlation Matrix'!M11 -> 0.0104718744 | H10: ='Correlation Matrix'!H11*'Correlation Matrix'!$M$9*'Correlation Matrix'!M11 -> 0.012738457 | I10: ='Correlation Matrix'!I11*'Correlation Matrix'!$M$10*'Correlation Matrix'!M11 -> 0.02123217726 | J10: ='Correlation Matrix'!J11*'Correlation Matrix'!$M$11*'Correlation Matrix'!M11 -> 0.03200655674
D12: Weighted Var/Cov Matrix
C13: =C2 -> IYE | D13: =D2 -> FXI | E13: VBR | F13: RJA | G13: HYG | H13: IDU | I13: VGT | J13: IFGL
B14: Weights | C14: =B15 -> -0.08545667137 | D14: =B16 -> 0.02359619517 | E14: =B17 -> -0.1500922199 | F14: =B18 -> 0.1595250224 | G14: =B19 -> 1.147762719 | H14: =B20 -> -0.02022866071 | I14: =B21 -> 0.05995561711 | J14: =B22 -> -0.1350619787
A15: =B3 -> IYE | B15: -0.08545667137 | C15: =C3*$B$15*C14 -> 0.0008626741293 | D15: =D3*B15*$D$14 -> -6.368164532e-05 | E15: =E3*B15*$E$14 -> 0.0008872455975 | F15: =F3*B15*$F$14 -> -0.0001921193047 | G15: =G3*B15*$G$14 -> -0.002021576109 | H15: =H3*B15*$H$14 -> 3.115479099e-05 | I15: =I3*B15*$I$14 -> -0.00020591719 | J15: =J3*B15*$J$14 -> 0.0005157228398
A16: =B4 -> FXI | B16: 0.02359619517 | C16: =C4*B16*$C$14 -> -6.368164532e-05 | D16: 1.880394981e-05 | E16: -8.160287488e-05 | F16: 2.405998623e-05 | G16: 0.0001918131542 | H16: -2.66925571e-06 | I16: 2.652315206e-05 | J16: -6.175097806e-05
A17: VBR | B17: -0.1500922199 | C17: =C5*B17*$C$14 -> 0.0008872455975 | D17: -8.160287488e-05 | E17: 0.001107722848 | F17: -0.0002568473568 | G17: -0.002360733582 | H17: 4.137701499e-05 | I17: -0.0002748012637 | J17: 0.0006100850009
A18: RJA | B18: 0.1595250224 | C18: -0.0001921193047 | D18: 2.405998623e-05 | E18: -0.0002568473568 | F18: 0.0003490006642 | G18: 0.0005754064249 | H18: -1.001035582e-05 | I18: 4.084800553e-05 | J18: -0.000182196449
A19: HYG | B19: 1.147762719 | C19: -0.002021576109 | D19: 0.0001918131542 | E19: -0.002360733582 | F19: 0.0005754064249 | G19: 0.007272951384 | H19: -0.0001352310393 | I19: 0.0006055448593 | J19: -0.001623340586
A20: IDU | B20: -0.02022866071 | C20: 3.115479099e-05 | D20: -2.66925571e-06 | E20: 4.137701499e-05 | F20: -1.001035582e-05 | G20: -0.0001352310393 | H20: 7.805593338e-06 | I20: -1.137608655e-05 | J20: 3.48030306e-05
A21: VGT | B21: 0.05995561711 | C21: -0.00020591719 | D21: 2.652315206e-05 | E21: -0.0002748012637 | F21: 4.084800553e-05 | G21: 0.0006055448593 | H21: -1.137608655e-05 | I21: 0.0001219553697 | J21: -0.0001719323172
A22: IFGL | B22: -0.1350619787 | C22: 0.0005157228398 | D22: -6.175097806e-05 | E22: 0.0006100850009 | F22: -0.000182196449 | G22: -0.001623340586 | H22: 3.48030306e-05 | I22: -0.0001719323172 | J22: 0.0005838552249
A23: Sum | B23: =SUM(B15:B22) -> 1.000000023
A25: Port. Var | B25: =SUM(C15:J22) -> 0.00218236409
A26: Port. S.D. | B26: =SQRT(B25) -> 0.04671577989
A27: Port. E(R.) | B27: =SUMPRODUCT('Correlation Matrix'!N4:N11,B15:B22) -> 0.03478050076
A29: Sharpe | B29: =(B27-Returns!U1)/'Covar Matrix'!B26 -> 0.1023316056
... 20 more rows

Sheet Efficient Frontier
D1: Efficient Frontier
A2: Expect. Ret. | B2: Stand. Dev. | C2: ='Covar Matrix'!C13 -> IYE | D2: ='Covar Matrix'!D13 -> FXI | E2: ='Covar Matrix'!E13 -> VBR | F2: ='Covar Matrix'!F13 -> RJA | G2: ='Covar Matrix'!G13 -> HYG | H2: ='Covar Matrix'!H13 -> IDU | I2: ='Covar Matrix'!I13 -> VGT | J2: ='Covar Matrix'!J13 -> IFGL
A3: 0.02000000102 | B3: 0.06286599783 | C3: -0.126262972 | D3: 0.02007147278 | E3: -0.2544485425 | F3: 0.1980633379 | G3: 1.417715459 | H3: -0.0365855155 | I3: -0.0469932566 | J3: -0.1715599835
A4: 0.03000000084 | B4: 0.04865694447 | C4: -0.09863859351 | D4: 0.02245046387 | E4: -0.1838551968 | F4: 0.1719987887 | G4: 1.235064846 | H4: -0.02549590449 | I4: 0.02536489311 | J4: -0.1468892967
A5: 0.04000000066 | B5: 0.04902101016 | C5: -0.07104351079 | D5: 0.02483462572 | E5: -0.1132440828 | F5: 0.1459152405 | G5: 1.052438246 | H5: -0.01444965328 | I5: 0.09772866015 | J5: -0.1221795258
A6: 0.05000000048 | B6: 0.0637088479 | C6: -0.04343886516 | D6: 0.02722532248 | E6: -0.04263548492 | F6: 0.1198420627 | G6: 0.8697919181 | H6: -0.003385948301 | I6: 0.1700813866 | J6: -0.09748039155
A7: 0.0600000003 | B7: 0.08564328243 | C7: -0.01583068463 | D7: 0.02960990569 | E7: 0.02796874377 | F7: 0.09376840787 | G7: 0.687150856 | H7: 0.007680519603 | I7: 0.2424396279 | J7: -0.07278737622
A8: 0.07000000012 | B8: 0.1105935035 | C8: 0.0117774873 | D8: 0.03199460808 | E8: 0.09857281461 | F8: 0.06769473338 | G8: 0.5045095875 | H8: 0.01874709497 | I8: 0.3147980239 | J8: -0.04809434973
A9: 0.07999999993 | B9: 0.1369206735 | C9: 0.03938558041 | D9: 0.03437927768 | E9: 0.1691770131 | F9: 0.04162104847 | G9: 0.321868246 | H9: 0.02981369323 | I9: 0.387156343 | J9: -0.0234012019
A10: 0.08999999977 | B10: 0.1639629046 | C10: 0.06769765938 | D10: 0.03680281886 | E10: 0.2380636979 | F10: 0.01599632362 | G10: 0.1385393919 | H10: 0.04119193777 | I10: 0.4602700415 | J10: 0.001438129071
A11: 0.1000000794 | B11: 0.1914175592 | C11: 0.09353641592 | D11: 0.03893411688 | E11: 0.3129788058 | F11: -0.01060683011 | G11: -0.04327573626 | H11: 0.05168085261 | I11: 0.5307740377 | J11: 0.02597833744
A12: 0.1099999994 | B12: 0.2191289445 | C12: 0.1222097807 | D12: 0.04153313637 | E12: 0.3809898424 | F12: -0.03660000544 | G12: -0.2260556454 | H12: 0.0630134598 | I12: 0.6042313341 | J12: 0.05067809753
A13: 0.1200000791 | B13: 0.2470116706 | C13: 0.1499338167 | D13: 0.04435381699 | E13: 0.4520367624 | F13: -0.06276315134 | G13: -0.4085035078 | H13: 0.0745132716 | I13: 0.6766313868 | J13: 0.07379760477
A14: 0.1300000789 | B14: 0.2750128782 | C14: 0.1774265798 | D14: 0.04630264657 | E14: 0.5221982861 | F14: -0.08874748292 | G14: -0.5913398541 | H14: 0.08514693725 | I14: 0.7489484794 | J14: 0.100064408
A15: 0.03478050076 | B15: 0.04671577989 | C15: -0.08545667137 | D15: 0.02359619517 | E15: -0.1500922199 | F15: 0.1595250224 | G15: 1.147762719 | H15: -0.02022866071 | I15: 0.05995561711 | J15: -0.1350619787 | K15: MVP
A16: 0.09113248547 | B16: 0.1670551793 | C16: 0.07047929404 | D16: 0.03793327703 | E16: 0.2474136482 | F16: 0.01274678367 | G16: 0.117501565 | H16: 0.04322106415 | I16: 0.4679055073 | J16: 0.002798861554 | K16: MVE
